bitfinex/quotes_BTCUSD_20240721
["timestamp","ask_amount","ask_price","bid_price","bid_amount"]
[1721585488726,0.151315,66087.0,66086.0,0.00795727]
[1721585488964,0.07717479,66093.0,66086.0,0.00795727]
[1721585488965,0.151311,66089.0,66086.0,0.00795727]
[1721585489183,0.53107879,66093.0,66092.0,0.00795727]
[1721585489412,0.22847579,66093.0,66092.0,0.00795727]
[1721585489832,0.53107879,66093.0,66092.0,0.01695727]
[1721585490038,0.83368179,66093.0,66092.0,0.01695727]
[1721585490275,0.83368179,66093.0,66064.0,0.002794]
[1721585490276,0.07717479,66093.0,66064.0,0.002794]
[1721585490489,0.1,66092.0,66062.0,0.002794]
[1721585491113,0.15133,66081.0,66062.0,0.002794]
[1721585491313,0.302655,66082.0,66062.0,0.002794]
[1721585491462,0.302659,66081.0,66062.0,0.002794]
[1721585491893,0.302638,66086.0,66062.0,0.154165]
[1721585492095,0.1,66092.0,66063.0,0.023]
[1721585492096,0.302648,66084.0,66063.0,0.023]
[1721585492307,0.1,66092.0,66065.0,0.151364]
[1721585492677,0.09117479,66093.0,66067.0,0.302719]
[1721585492678,0.014,66081.0,66067.0,0.302719]
[1721585492893,0.014,66081.0,66066.0,0.17738174]
[1721585492894,0.014,66081.0,66069.0,0.002794]
[1721585493156,0.014,66081.0,66069.0,0.15717574]
[1721585493386,0.151309,66090.0,66069.0,0.15717574]
[1721585493601,0.007,66084.0,66070.0,0.023]
[1721585493815,0.007,66084.0,66072.0,0.302699]
[1721585494053,0.007,66084.0,66070.0,0.023]
[1721585494054,0.46304871,66102.0,66085.0,0.144]
[1721585494253,0.302574,66100.0,66085.0,0.144]
[1721585494466,0.07717479,66102.0,66086.0,0.025794]
[1721585494673,0.07717479,66102.0,66086.0,0.023]
[1721585494889,0.302603,66094.0,66086.0,0.023]
[1721585495106,0.30261,66092.0,66086.0,0.023]
[1721585495314,0.30259,66096.0,66086.0,0.023]
[1721585495315,0.30568974,66091.0,66086.0,0.023]
[1721585495523,0.151311,66089.0,66086.0,0.023]
[1721585495731,0.15438174,66089.0,66086.0,0.023]
[1721585495936,0.0825,66107.0,66086.0,0.023]
[1721585495937,0.15438174,66088.0,66086.0,0.023]
[1721585496352,0.009,66092.0,66087.0,0.002794]
[1721585496574,0.15036635,66091.0,66086.0,0.023]
[1721585496795,0.22754114,66091.0,66086.0,0.023]
[1721585497010,0.011,66089.0,66086.0,0.024]
[1721585497222,0.15438174,66088.0,66086.0,0.024]
[1721585497433,0.14938174,66088.0,66086.0,0.024]
[1721585497883,0.07717479,66091.0,66086.0,0.023]
[1721585498125,0.151284,66101.0,66087.0,0.002794]
[1721585498339,0.46304871,66108.0,66090.0,0.0654]
[1721585498553,0.02373599,66119.0,66091.0,0.29536444]
[1721585498767,0.46304871,66110.0,66091.0,0.29536444]
[1721585498971,0.15588164,66118.0,66091.0,0.1409827]
[1721585498972,0.15438174,66118.0,66091.0,0.1409827]
[1721585499197,0.15438174,66118.0,66101.0,0.151281]
[1721585499486,0.113,66136.0,66092.0,0.20830783]
[1721585499487,0.151229,66125.0,66105.0,0.151273]
[1721585499695,0.151246,66118.0,66106.0,0.023]
[1721585499908,0.07717479,66122.0,66106.0,0.023]
[1721585499909,0.07717479,66122.0,66106.0,0.02602463]
[1721585500145,0.15438174,66121.0,66106.0,0.02602463]
[1721585500359,0.15438174,66121.0,66107.0,0.01622246]
[1721585500570,0.15438174,66121.0,66108.0,0.023]
[1721585501025,0.302391,66140.0,66108.0,0.023]
[1721585501026,0.22837579,66137.0,66118.0,0.151242]
[1721585501241,0.15438174,66136.0,66120.0,0.0751]
[1721585501452,0.76542271,66144.0,66121.0,0.15740598]
[1721585501453,0.46304871,66144.0,66121.0,0.15740598]
[1721585501663,0.46304871,66144.0,66122.0,0.023]
[1721585501664,0.151204,66136.0,66122.0,0.023]
[1721585501872,0.07717479,66134.0,66122.0,0.023]
[1721585502084,0.07717479,66142.0,66122.0,0.023]
[1721585502085,0.002,66149.0,66125.0,0.0611]
[1721585502287,0.002,66149.0,66133.0,0.0611]
[1721585502497,0.002,66149.0,66134.0,0.00302312]
[1721585502697,0.002,66149.0,66135.0,0.023]
[1721585502915,0.002,66149.0,66136.0,0.15438174]
[1721585503135,0.002,66149.0,66135.0,0.023]
[1721585503136,0.07717479,66142.0,66137.0,0.023]
[1721585503363,0.002,66149.0,66138.0,0.15438174]
[1721585503595,0.002,66149.0,66139.0,0.0260232]
[1721585503814,0.002,66149.0,66139.0,0.023]
[1721585504880,0.07717479,66141.0,66139.0,0.023]
[1721585505102,0.07717479,66141.0,66118.0,0.05]
[1721585505103,0.302478,66121.0,66084.0,0.04457832]
[1721585505315,0.302478,66121.0,66079.0,0.08915664]
[1721585505316,3.83965759,66140.0,66097.0,0.46304871]
[1721585505317,0.07717479,66101.0,66097.0,0.46304871]
[1721585505540,0.07717479,66101.0,66072.0,0.302697]
[1721585505786,0.07717479,66101.0,66071.0,0.0751]
[1721585505787,0.07867469,66101.0,66071.0,0.0751]
[1721585506198,0.151312,66089.0,66071.0,0.0751]
[1721585506405,0.0839999,66099.0,66072.0,0.00302633]
[1721585506617,0.07717479,66081.0,66072.0,0.01694896]
[1721585506828,0.07717479,66081.0,66072.0,0.00302633]
[1721585507080,0.07717479,66081.0,66071.0,0.0751]
[1721585507287,0.07717479,66081.0,66071.0,0.0761]
[1721585507493,0.07717479,66081.0,66071.0,0.0751]
[1721585507707,0.07717479,66088.0,66072.0,0.16900174]
[1721585507918,0.07717479,66080.0,66073.0,0.0030262]
[1721585508141,0.07717479,66080.0,66073.0,0.15438174]
[1721585508587,0.07717479,66080.0,66071.0,0.0751]
[1721585508797,0.07717479,66080.0,66071.0,0.22948174]
[1721585509011,0.07717479,66073.0,66071.0,0.22948174]
[1721585509443,0.07717479,66073.0,66071.0,0.23048174]
[1721585509646,0.07717479,66073.0,66071.0,0.0751]
[1721585509854,0.07717479,66073.0,66071.0,0.0781]
[1721585510061,0.07717479,66073.0,66072.0,0.023]
[1721585510489,0.07817479,66073.0,66072.0,0.023]
[1721585511576,0.07813479,66073.0,66072.0,0.023]
[1721585511809,0.352528,66110.0,66072.0,0.19742816]
[1721585511810,0.302528,66110.0,66072.0,0.19742816]
[1721585512062,0.12793832,66115.0,66072.0,0.19742816]
[1721585512063,0.07717479,66090.0,66073.0,0.21850734]
[1721585512302,0.07717479,66115.0,66073.0,0.21850734]
[1721585512303,0.18789523,66111.0,66081.0,0.0611]
[1721585512527,0.07717479,66099.0,66083.0,0.002794]
[1721585512728,0.07717479,66099.0,66096.0,0.151294]
[1721585512966,0.07717479,66099.0,66084.0,0.00302542]
[1721585512967,0.46304871,66098.0,66097.0,0.023]
[1721585513210,0.07717479,66099.0,66097.0,0.023]
[1721585513459,0.07717479,66099.0,66028.0,0.00634967]
[1721585513460,0.03663323,66038.0,66028.0,0.00634967]
[1721585513662,0.54091723,66032.0,66031.0,1e-06]
[1721585513872,0.54091723,66032.0,66028.0,0.00634967]
[1721585513873,0.79383523,66029.0,66028.0,0.00634967]
[1721585514092,1.09673223,66029.0,66028.0,0.00634967]
[1721585514307,1.38125537,66029.0,66028.0,0.00634967]
[1721585514517,1.58415237,66029.0,66028.0,0.00634967]
[1721585514794,1.68415237,66029.0,66028.0,0.00634967]
[1721585515007,1.80999525,66029.0,66028.0,0.00634967]
[1721585515219,1.65305825,66029.0,66028.0,0.00634967]
[1721585515436,1.766778,66029.0,66028.0,0.00634967]
[1721585515643,1.833441,66029.0,66028.0,0.00634967]
[1721585516076,2.136338,66029.0,66028.0,0.00634967]
[1721585516302,1.09671506,66012.0,66011.0,0.002]
[1721585516504,1.2510968,66012.0,66011.0,0.002]
[1721585516720,1.4010968,66012.0,66011.0,0.002]
[1721585516930,1.9263592,66012.0,66011.0,0.002]
[1721585517171,2.09759959,66012.0,66011.0,0.002]
[1721585517390,2.20702712,66012.0,66011.0,0.002]
[1721585517609,2.43358336,66012.0,66011.0,0.0003408]
[1721585517820,2.43358336,66012.0,65964.0,0.46304871]
[1721585517821,1.40012206,65991.0,65964.0,0.46304871]
[1721585518033,1.32860759,65991.0,65964.0,0.46304871]
[1721585518244,1.32860759,65991.0,65957.0,0.0611]
[1721585518245,1.02553659,65991.0,65971.0,0.0751]
[1721585518448,1.02553659,65991.0,65961.0,0.009196]
[1721585518449,1.45874899,65991.0,65961.0,0.009196]
[1721585518725,1.62518899,65991.0,65961.0,0.009196]
[1721585518931,1.61873687,65991.0,65961.0,0.009196]
[1721585519139,1.50403887,65991.0,65961.0,0.009196]
[1721585519346,1.69494687,65991.0,65961.0,0.009196]
[1721585519556,1.15546787,65991.0,65961.0,0.009196]
[1721585519785,0.37215108,65991.0,65969.0,0.5]
[1721585519991,0.37215108,65991.0,65961.0,0.009196]
[1721585519992,0.37215108,65991.0,65989.0,0.0601]
[1721585520201,0.22061608,65991.0,65989.0,0.0601]
[1721585520415,0.52368708,65991.0,65984.0,0.10144247]
[1721585520623,0.19047468,65991.0,65984.0,0.10144247]
[1721585520829,0.34200968,65991.0,65984.0,0.10144247]
[1721585521057,0.49354568,65991.0,65984.0,0.10144247]
[1721585521302,0.67522208,65991.0,65984.0,0.01884247]
[1721585521718,0.34200968,65991.0,65990.0,0.495]
[1721585521929,0.22061608,65991.0,65990.0,0.495]
[1721585522140,0.37215108,65991.0,65990.0,0.495]
[1721585522375,0.22061608,65991.0,65990.0,0.495]
[1721585522807,0.37365098,65991.0,65990.0,0.495]
[1721585523449,0.22061608,65991.0,65990.0,0.495]
[1721585523666,0.37215108,65991.0,65990.0,0.495]
[1721585524118,0.97829308,65991.0,65990.0,0.495]
[1721585524329,1.38136408,65991.0,65990.0,0.495]
[1721585524554,1.38986408,65991.0,65990.0,0.495]
[1721585524771,1.50896408,65991.0,65990.0,0.495]
[1721585524992,1.81203508,65991.0,65990.0,0.495]
[1721585525229,1.94432504,65991.0,65990.0,0.495]
[1721585525435,2.02002704,65991.0,65990.0,0.495]
[1721585525647,1.97002704,65991.0,65990.0,0.495]
[1721585525831,2.02002704,65991.0,65990.0,0.495]
[1721585526303,1.97002704,65991.0,65990.0,0.495]
[1721585526537,2.02002704,65991.0,65990.0,0.495]
[1721585527154,2.02002704,65991.0,65990.0,0.49]
[1721585527373,2.01952704,65991.0,65990.0,0.49]
[1721585527600,1.66645604,65991.0,65990.0,0.49]
[1721585527844,2.01952704,65991.0,65990.0,0.49]
[1721585528054,1.55976408,65991.0,65990.0,0.49]
[1721585528262,1.55936408,65991.0,65990.0,0.49]
[1721585528904,1.60936408,65991.0,65990.0,0.49]
[1721585529127,1.99041871,65991.0,65990.0,0.49]
[1721585529335,1.98191871,65991.0,65990.0,0.49]
[1721585529541,1.55086408,65991.0,65990.0,0.49]
[1721585529969,1.60086408,65991.0,65990.0,0.49]
[1721585530199,1.58842408,65991.0,65990.0,0.49]
[1721585530632,1.58842408,65991.0,65990.0,0.48473167]
[1721585531052,1.53842408,65991.0,65990.0,0.48473167]
[1721585531277,1.42636408,65991.0,65990.0,0.48473167]
[1721585531508,1.07779308,65991.0,65990.0,0.48473167]
[1721585531746,1.19759308,65991.0,65990.0,0.48473167]
[1721585531951,1.50066408,65991.0,65990.0,0.48473167]
[1721585532366,1.38086408,65991.0,65990.0,0.48473167]
[1721585533008,1.71566908,65991.0,65990.0,0.48473167]
[1721585533227,1.66566908,65991.0,65990.0,0.48473167]
[1721585533654,0.97779308,65991.0,65990.0,0.48473167]
[1721585533868,0.97779308,65991.0,65990.0,0.54483167]
[1721585533869,0.64458068,65991.0,65990.0,0.54483167]
[1721585534093,0.18997468,65991.0,65990.0,0.54483167]
[1721585534361,0.34150968,65991.0,65990.0,1.48473167]
[1721585534573,0.63212298,65991.0,65990.0,1.48473167]
[1721585534777,0.93519398,65991.0,65990.0,1.48473167]
[1721585534980,0.96533538,65991.0,65990.0,1.48473167]
[1721585535188,0.66226438,65991.0,65990.0,1.48473167]
[1721585535402,0.32905198,65991.0,65990.0,1.48473167]
[1721585535615,0.32905198,65991.0,65954.0,0.00011]
[1721585535616,0.44086494,65975.0,65954.0,0.00011]
[1721585535851,0.72186647,65975.0,65954.0,0.00011]
[1721585536064,0.22011608,65975.0,65974.0,0.14368975]
[1721585536281,0.22011608,65975.0,65974.0,0.13868975]
[1721585536722,0.08517479,65991.0,65974.0,0.15255873]
[1721585536723,0.03559294,65988.0,65974.0,0.15255873]
[1721585536933,0.008,65991.0,65975.0,0.0601]
[1721585537159,0.008,65991.0,65988.0,0.0601]
[1721585537371,0.008,65991.0,65990.0,0.151538]
[1721585537574,0.008,65991.0,65988.0,0.0601]
[1721585537783,0.03559294,66003.0,65990.0,0.023]
[1721585538004,0.03559294,66003.0,65988.0,0.0601]
[1721585538005,0.07717479,65991.0,65988.0,0.0561]
[1721585538259,0.03559294,65992.0,65988.0,0.0561]
[1721585538475,0.303136,65977.0,65963.0,0.29390496]
[1721585538686,0.03559294,65975.0,65964.0,0.0345448]
[1721585538912,0.03559294,65975.0,65963.0,0.29390496]
[1721585538913,0.07717479,65969.0,65963.0,0.29390496]
[1721585539132,0.03559294,65965.0,65964.0,0.0829]
[1721585539348,0.03559294,65966.0,65964.0,0.0829]
[1721585539771,0.07717479,65967.0,65964.0,0.0829]
[1721585540200,0.06717479,65967.0,65964.0,0.0829]
[1721585540618,0.06669277,65967.0,65964.0,0.0829]
[1721585540845,0.03559294,65966.0,65964.0,0.0829]
[1721585541052,0.06669277,65967.0,65965.0,0.0603]
[1721585541269,0.64475368,65966.0,65965.0,0.0603]
[1721585541479,0.94793968,65966.0,65965.0,0.0603]
[1721585541695,0.64475368,65966.0,65965.0,0.0603]
[1721585541902,0.151593,65966.0,65965.0,0.0603]
[1721585542119,0.18718594,65966.0,65965.0,0.0603]
[1721585542372,0.64475368,65966.0,65965.0,0.0603]
[1721585542594,0.94793968,65966.0,65965.0,0.0603]
[1721585542797,0.94793968,65966.0,65964.0,0.0929]
[1721585542798,0.79356994,65965.0,65964.0,0.013]
[1721585543043,1.25114268,65965.0,65964.0,0.013]
[1721585543256,0.91235874,65965.0,65964.0,0.013]
[1721585543461,1.4887984,65965.0,65964.0,0.013]
[1721585543669,1.47708372,65965.0,65964.0,0.013]
[1721585543881,1.47708372,65965.0,65963.0,0.27658496]
[1721585543882,0.08559294,65964.0,65963.0,0.27658496]
[1721585544119,0.03559294,65947.0,65914.0,0.002794]
[1721585544360,0.03559294,65947.0,65906.0,0.0603]
[1721585544361,1.35523974,65947.0,65946.0,1e-06]
[1721585544703,1.47000626,65947.0,65946.0,1e-06]
[1721585544706,1.29272946,65947.0,65946.0,1e-06]
[1721585544897,1.95080174,65947.0,65946.0,1e-06]
[1721585545257,2.17141328,65947.0,65946.0,1e-06]
[1721585545575,2.33272973,65947.0,65946.0,1e-06]
[1721585545754,1.44347373,65947.0,65946.0,1e-06]
[1721585545953,1.29246907,65947.0,65946.0,1e-06]
[1721585546407,0.68592307,65947.0,65946.0,1e-06]
[1721585546615,0.43428707,65947.0,65946.0,1e-06]
[1721585546828,0.23111608,65947.0,65946.0,1e-06]
[1721585547050,0.0411414,65947.0,65946.0,1e-06]
[1721585547323,0.16538174,65947.0,65946.0,0.0603]
[1721585547557,0.79379994,65945.0,65944.0,0.030901]
[1721585547772,0.84803649,65945.0,65944.0,0.030901]
[1721585548014,0.26714947,65945.0,65944.0,0.030901]
[1721585548434,0.72207347,65945.0,65944.0,0.030901]
[1721585548636,1.55462072,65945.0,65944.0,0.030901]
[1721585549050,1.56440911,65945.0,65944.0,0.031901]
[1721585549473,1.43842786,65945.0,65944.0,0.031901]
[1721585549746,1.56441668,65945.0,65944.0,0.031901]
[1721585549961,1.86769968,65945.0,65944.0,0.031901]
[1721585550164,1.56441668,65945.0,65944.0,0.031901]
[1721585550586,1.25113368,65945.0,65944.0,0.030901]
[1721585550804,1.26113368,65945.0,65944.0,0.031901]
[1721585551040,1.56441668,65945.0,65944.0,0.031901]
[1721585551256,1.25113368,65945.0,65944.0,0.030901]
[1721585551468,1.55441668,65945.0,65944.0,0.030901]
[1721585551686,1.56441668,65945.0,65944.0,0.031901]
[1721585551916,1.58885249,65945.0,65944.0,0.031901]
[1721585552124,1.79509249,65945.0,65944.0,0.030901]
[1721585552335,1.77065668,65945.0,65944.0,0.030901]
[1721585552547,1.55441668,65945.0,65944.0,0.030901]
[1721585552751,0.82186186,65945.0,65944.0,0.030901]
[1721585553193,1.66839386,65945.0,65944.0,0.030901]
[1721585553412,0.82186186,65945.0,65944.0,0.030901]
[1721585553638,1.12514486,65945.0,65944.0,0.030901]
[1721585553845,1.42842786,65945.0,65944.0,0.030901]
[1721585554052,1.56441657,65945.0,65944.0,0.031901]
[1721585554256,1.59991886,65945.0,65944.0,0.031901]
[1721585554465,1.59991886,65945.0,65944.0,0.030901]
[1721585554466,1.58991886,65945.0,65944.0,0.030901]
[1721585554673,1.55441657,65945.0,65944.0,0.030901]
[1721585554910,1.43642786,65945.0,65944.0,0.031901]
[1721585555109,1.13314486,65945.0,65944.0,0.031901]
[1721585555325,1.13314486,65945.0,65944.0,0.040901]
[1721585555326,1.42842786,65945.0,65944.0,0.040901]
[1721585555532,1.12514486,65945.0,65944.0,0.040901]
[1721585555753,1.13514486,65945.0,65944.0,0.041901]
[1721585555963,1.75419876,65945.0,65944.0,0.041901]
[1721585556184,1.53941876,65945.0,65944.0,0.041901]
[1721585556598,1.53941936,65945.0,65944.0,0.041901]
[1721585556806,1.69852736,65945.0,65944.0,0.041901]
[1721585557023,1.53891936,65945.0,65944.0,0.041901]
[1721585557232,1.96052636,65945.0,65944.0,0.040901]
[1721585557502,1.98025855,65945.0,65944.0,0.040901]
[1721585557716,1.57215155,65945.0,65944.0,0.040901]
[1721585557939,1.7173903,65945.0,65944.0,0.040901]
[1721585558154,1.58771586,65945.0,65944.0,0.040901]
[1721585558371,1.54291894,65945.0,65944.0,0.040901]
[1721585558585,0.40707886,65945.0,65944.0,0.040901]
[1721585558792,0.20397468,65945.0,65944.0,0.184401]
[1721585559001,0.18997468,65945.0,65944.0,0.184401]
[1721585559425,0.22011608,65945.0,65944.0,0.184401]
[1721585559610,0.23681608,65945.0,65944.0,0.184401]
[1721585560058,0.0468414,65945.0,65944.0,0.184401]
[1721585560474,0.0608414,65945.0,65944.0,0.184401]
[1721585560680,0.03559294,65954.0,65945.0,0.002794]
[1721585560892,0.03559294,65960.0,65945.0,0.002794]
[1721585561105,0.03559294,65960.0,65948.0,0.0648]
[1721585561106,0.18997468,65960.0,65948.0,0.0648]
[1721585561314,0.76619671,65975.0,65945.0,0.023]
[1721585561315,0.46304871,65973.0,65955.0,0.0648]
[1721585561528,0.46304871,65973.0,65957.0,0.002794]
[1721585561739,0.07717479,65990.0,65957.0,0.002794]
[1721585561947,0.07717479,65964.0,65957.0,0.002794]
[1721585562154,0.07717479,65973.0,65957.0,0.002794]
[1721585562155,0.014,65960.0,65957.0,0.002794]
[1721585562357,0.014,65960.0,65956.0,0.0759]
[1721585562563,0.014,65960.0,65957.0,0.002794]
[1721585562969,0.014,65960.0,65956.0,0.0759]
[1721585562970,0.07717479,65959.0,65956.0,0.0759]
[1721585563172,0.0143014,65960.0,65956.0,0.0759]
[1721585563362,0.0143014,65960.0,65957.0,0.002794]
[1721585563597,0.014,65960.0,65957.0,0.002794]
[1721585563778,0.07867469,65973.0,65957.0,0.002794]
[1721585563779,0.07717479,65973.0,65957.0,0.002794]
[1721585564021,0.07717479,65966.0,65957.0,0.002794]
[1721585564227,0.07717479,65966.0,65956.0,0.0759]
[1721585564432,0.07717479,65966.0,65958.0,0.0648]
[1721585564433,0.07747619,65966.0,65958.0,0.0648]
[1721585564639,0.15438174,65971.0,65959.0,0.002794]
[1721585564640,0.07717479,65965.0,65959.0,0.002794]
[1721585565055,0.001,65960.0,65959.0,0.002794]
[1721585565515,0.02847619,65968.0,65959.0,0.002794]
[1721585565717,0.46304871,65995.0,65959.0,0.002794]
[1721585565718,0.23155653,65976.0,65960.0,0.0149494]
[1721585565924,0.23155653,65976.0,65961.0,0.025794]
[1721585566130,0.07717479,65976.0,65963.0,0.002794]
[1721585566337,0.07717479,65976.0,65962.0,0.002794]
[1721585566338,0.07717479,65969.0,65962.0,0.002794]
[1721585566759,0.3037,65999.0,65962.0,0.16344114]
[1721585566760,0.2537,65999.0,65962.0,0.16344114]
[1721585566971,0.2537,65999.0,65964.0,0.454792]
[1721585566972,0.001,65965.0,65964.0,0.454792]
[1721585567191,0.001,65965.0,65964.0,0.477792]
[1721585567399,0.2537,65999.0,65965.0,0.0759]
[1721585567400,0.303062,65994.0,65965.0,0.0759]
[1721585567611,0.2537,65999.0,65967.0,0.002794]
[1721585567612,0.15438174,65988.0,65967.0,0.002794]
[1721585567821,0.15438174,65988.0,65968.0,0.00303113]
[1721585568030,0.15438174,65988.0,65972.0,0.151579]
[1721585568237,0.15438174,65988.0,65970.0,0.151582]
[1721585568442,0.15438174,65988.0,65971.0,0.17458]
[1721585568874,0.15438174,65988.0,65971.0,0.023]
[1721585569119,0.151534,65992.0,65974.0,0.151574]
[1721585569359,0.07717479,65987.0,65971.0,0.151581]
[1721585569598,0.07717479,65987.0,65972.0,0.023]
[1721585569826,0.07717479,65980.0,65972.0,0.023]
[1721585570058,0.07717479,65980.0,65968.0,0.002794]
[1721585570059,0.07717479,65987.0,65975.0,0.151571]
[1721585570282,0.0823,66006.0,65982.0,0.151555]
[1721585570283,0.07717479,65998.0,65982.0,0.151555]
[1721585570487,0.07717479,65998.0,65976.0,0.1407]
[1721585570689,0.151541,65989.0,65977.0,0.023]
[1721585570921,0.003,65988.0,65977.0,0.023]
[1721585571356,0.303048,65996.0,65977.0,0.023]
[1721585571566,0.0014999,65997.0,65977.0,0.023]
[1721585571775,0.07717479,65983.0,65982.0,0.001]
[1721585572207,0.07717479,65983.0,65976.0,0.1407]
[1721585572419,0.07717479,65989.0,65976.0,0.1407]
[1721585572627,0.003,65988.0,65977.0,0.023]
[1721585573334,0.07717479,65982.0,65977.0,0.023]
[1721585573542,0.07717479,65982.0,65976.0,0.1407]
[1721585573543,0.07717479,65981.0,65976.0,0.1407]
[1721585573749,0.003,65988.0,65976.0,0.1407]
[1721585573960,0.07717479,65989.0,65976.0,0.1407]
[1721585574170,0.07717479,65989.0,65982.0,0.002]
[1721585574784,0.07717479,65989.0,65976.0,0.1407]
[1721585574992,0.003,65988.0,65976.0,0.1407]
[1721585575504,0.07717479,65989.0,65976.0,0.1407]
[1721585576090,0.08117479,65989.0,65976.0,0.1407]
[1721585576361,0.05,66022.0,65966.0,0.002794]
[1721585576362,0.014,66012.0,66000.0,0.1413]
[1721585576597,0.014,66012.0,66008.0,0.151496]
[1721585576598,0.46304871,66009.0,66008.0,0.151496]
[1721585576815,0.014,66012.0,66009.0,0.023]
[1721585577017,0.014,66012.0,66011.0,0.228189]
[1721585577222,0.023767,66026.0,66017.0,0.11459999]
[1721585577442,0.023767,66026.0,66015.0,0.5]
[1721585577443,0.00838,66039.0,66025.0,0.0767]
[1721585577648,0.00838,66039.0,66026.0,0.25267999]
[1721585578135,0.00838,66039.0,66027.0,0.00302825]
[1721585578367,0.00838,66039.0,66028.0,0.31868174]
[1721585578614,0.00838,66054.0,66042.0,0.05]
[1721585578823,0.00838,66054.0,66053.0,0.59548]
[1721585579035,0.06066,66074.0,66058.0,0.0767]
[1721585579272,0.07717479,66081.0,66058.0,0.0767]
[1721585579273,0.0794,66106.0,66060.0,0.0791]
[1721585579481,0.12798066,66122.0,66054.0,0.33091479]
[1721585579482,0.46304871,66080.0,66073.0,0.0661]
[1721585579693,0.07717479,66094.0,66075.0,0.002794]
[1721585579901,0.37970979,66108.0,66082.0,0.05]
[1721585579902,0.060634,66107.0,66082.0,0.05]
[1721585580108,0.002,66109.0,66079.0,0.0661]
[1721585580109,0.46304871,66102.0,66088.0,0.0661]
[1721585580331,0.002,66109.0,66089.0,0.00302529]
[1721585580332,0.46304871,66101.0,66089.0,0.00302529]
[1721585580548,0.002,66109.0,66089.0,0.00302529]
[1721585580549,0.002,66109.0,66090.0,0.023]
[1721585580781,0.002,66109.0,66092.0,0.1452]
[1721585580987,0.07717479,66108.0,66093.0,0.025794]
[1721585581419,0.07717479,66108.0,66083.0,0.0791]
[1721585581420,0.151317,66087.0,66083.0,0.0791]
[1721585581631,0.07717479,66094.0,66083.0,0.0791]
[1721585581857,0.07717479,66101.0,66085.0,0.002794]
[1721585582095,0.060636,66107.0,66084.0,0.15438174]
[1721585582096,0.07717479,66093.0,66092.0,0.001]
[1721585582295,0.37974679,66100.0,66092.0,0.001]
[1721585582517,0.07717479,66100.0,66093.0,0.002794]
[1721585582760,0.07717479,66100.0,66083.0,0.0791]
[1721585582761,0.002,66109.0,66095.0,0.1452]
[1721585582985,0.07717479,66100.0,66096.0,0.18017574]
[1721585583189,0.07717479,66100.0,66095.0,0.1452]
[1721585583190,0.07567479,66100.0,66095.0,0.1452]
[1721585583395,0.07567479,66100.0,66096.0,0.002794]
[1721585583618,0.07717479,66107.0,66096.0,0.002794]
[1721585583838,0.07717479,66106.0,66097.0,0.15438174]
[1721585584067,0.07717479,66106.0,66100.0,0.151285]
[1721585584276,0.07717479,66106.0,66098.0,0.03168957]
[1721585584486,0.07717479,66106.0,66095.0,0.1452]
[1721585584487,0.07717479,66099.0,66095.0,0.1452]
[1721585584698,0.22846379,66099.0,66096.0,0.023]
[1721585584925,0.22846379,66099.0,66095.0,0.1452]
[1721585584927,0.151295,66096.0,66095.0,0.1452]
[1721585585154,0.07717479,66106.0,66095.0,0.1452]
[1721585585155,0.37972279,66106.0,66095.0,0.1452]
[1721585585386,0.37972279,66106.0,66100.0,0.001]
[1721585585387,0.08317479,66106.0,66100.0,0.001]
[1721585585802,0.07717479,66106.0,66097.0,0.002794]
[1721585586027,0.07717479,66106.0,66095.0,0.1452]
[1721585586028,0.151285,66101.0,66095.0,0.1452]
[1721585586245,0.004,66099.0,66096.0,0.00302551]
[1721585586468,0.004,66099.0,66097.0,0.023]
[1721585586673,0.004,66099.0,66095.0,0.1452]
[1721585586674,0.07717479,66098.0,66095.0,0.1452]
[1721585586891,0.756475,66096.0,66095.0,0.0661]
[1721585587107,0.756475,66096.0,66071.0,0.0791]
[1721585587108,0.302623,66089.0,66071.0,0.0791]
[1721585587315,0.07717479,66098.0,66071.0,0.0791]
[1721585587316,0.45405,66072.0,66071.0,0.0791]
[1721585587524,0.75675,66072.0,66071.0,0.0791]
[1721585587737,0.07717479,66074.0,66067.0,0.0661]
[1721585587738,0.151359,66068.0,66067.0,0.0661]
[1721585588010,0.151359,66068.0,66059.0,0.0791]
[1721585588011,0.37986679,66074.0,66060.0,0.0661]
[1721585588012,0.30275,66061.0,66060.0,0.0661]
[1721585588234,0.30275,66061.0,66054.0,4e-05]
[1721585588235,0.454165,66055.0,66054.0,4e-05]
[1721585588658,0.151388,66055.0,66054.0,4e-05]
[1721585588871,0.454165,66055.0,66054.0,4e-05]
[1721585589076,0.756942,66055.0,66054.0,4e-05]
[1721585589557,0.91132374,66055.0,66054.0,4e-05]
[1721585590209,0.07717479,66060.0,66054.0,4e-05]
[1721585590210,0.151379,66059.0,66054.0,4e-05]
[1721585590426,0.001,66061.0,66054.0,4e-05]
[1721585590652,0.17717479,66081.0,66054.0,4e-05]
[1721585590653,0.07717479,66067.0,66054.0,4e-05]
[1721585590862,0.47983679,66081.0,66056.0,0.0661]
[1721585590863,0.15134,66077.0,66056.0,0.0661]
[1721585591067,0.07717479,66074.0,66057.0,0.18765013]
[1721585591285,0.07717479,66060.0,66058.0,0.025794]
[1721585591501,0.07717479,66060.0,66056.0,0.0661]
[1721585591502,0.151384,66057.0,66056.0,0.0661]
[1721585591715,0.151388,66055.0,66054.0,4e-05]
[1721585591941,0.151388,66055.0,66054.0,0.00104]
[1721585591942,0.756942,66055.0,66054.0,0.00104]
[1721585592149,0.91132374,66055.0,66054.0,0.00104]
[1721585592372,0.07717479,66060.0,66054.0,4e-05]
[1721585592578,0.07717479,66074.0,66058.0,0.001]
[1721585592788,0.07717479,66067.0,66059.0,0.002794]
[1721585592995,0.07717479,66074.0,66059.0,0.002794]
[1721585593205,0.07717479,66067.0,66059.0,0.002794]
[1721585593426,0.302604,66093.0,66061.0,0.002794]
[1721585593632,0.302585,66097.0,66061.0,0.002794]
[1721585593633,0.46304871,66077.0,66076.0,0.0661]
[1721585593851,0.07717479,66080.0,66063.0,0.0661]
[1721585594086,0.05,66103.0,66063.0,0.0661]